[Event "Live Chess"]
[Site "Chess.com"]
[Date "2023.05.20"]
[Round "-"]
[White "JoeyCage"]
[Black "LL220284LL"]
[Result "1-0"]
[WhiteElo "2316"]
[BlackElo "2378"]
[TimeControl "300"]
[EndTime "15:05:04 PDT"]
[Termination "JoeyCage won on time"]

1. e4 {[%clk 0:04:57.6]} 1... d5 {[%clk 0:04:56.5]} 2. exd5 {[%clk 0:04:56.5]}
2... Qxd5 {[%clk 0:04:56.4]} 3. Qf3 {[%clk 0:04:55.9]} 3... Nf6 {[%clk
0:04:53.6]} 4. Nc3 {[%clk 0:04:53.5]} 4... Qxf3 {[%clk 0:04:52.8]} 5. Nxf3
{[%clk 0:04:52.4]} 5... c6 {[%clk 0:04:49.8]} 6. Bc4 {[%clk 0:04:50.9]} 6... Bf5
{[%clk 0:04:48]} 7. d3 {[%clk 0:04:49.6]} 7... e6 {[%clk 0:04:47.1]} 8. Nh4
{[%clk 0:04:47.5]} 8... Bg6 {[%clk 0:04:43.4]} 9. Nxg6 {[%clk 0:04:46.1]} 9...
hxg6 {[%clk 0:04:43.3]} 10. Bd2 {[%clk 0:04:41.9]} 10... Nbd7 {[%clk 0:04:42.8]}
11. O-O-O {[%clk 0:04:40.1]} 11... b5 {[%clk 0:04:38.6]} 12. Bb3 {[%clk
0:04:37.8]} 12... a5 {[%clk 0:04:37.9]} 13. a4 {[%clk 0:04:36.7]} 13... b4
{[%clk 0:04:37.3]} 14. Ne4 {[%clk 0:04:35.2]} 14... Nxe4 {[%clk 0:04:36.1]} 15.
dxe4 {[%clk 0:04:34]} 15... Nc5 {[%clk 0:04:35.5]} 16. f3 {[%clk 0:04:28.8]}
16... Nxb3+ {[%clk 0:04:34.3]} 17. cxb3 {[%clk 0:04:27.9]} 17... O-O-O {[%clk
0:04:29.7]} 18. Be3 {[%clk 0:04:25.1]} 18... Bd6 {[%clk 0:04:24.4]} 19. h3
{[%clk 0:04:20.2]} 19... Bc7 {[%clk 0:04:18.5]} 20. Kc2 {[%clk 0:04:18.8]} 20...
f5 {[%clk 0:04:16.4]} 21. Bg5 {[%clk 0:04:12.9]} 21... Rxd1 {[%clk 0:04:10.2]}
22. Rxd1 {[%clk 0:04:11.3]} 22... Be5 {[%clk 0:04:07.6]} 23. exf5 {[%clk
0:04:04.9]} 23... exf5 {[%clk 0:04:00]} 24. Re1 {[%clk 0:04:03.4]} 24... Bc7
{[%clk 0:03:50.3]} 25. Be3 {[%clk 0:03:51.7]} 25... Re8 {[%clk 0:03:48.3]} 26.
Bf2 {[%clk 0:03:50.7]} 26... Rxe1 {[%clk 0:03:41.7]} 27. Bxe1 {[%clk 0:03:49.8]}
27... Be5 {[%clk 0:03:41.4]} 28. Bf2 {[%clk 0:03:48.3]} 28... Kb7 {[%clk
0:03:40]} 29. Bc5 {[%clk 0:03:45.7]} 29... Bf6 {[%clk 0:03:37.4]} 30. Bd6 {[%clk
0:03:42.7]} 30... Kb6 {[%clk 0:03:35.1]} 31. Bf8 {[%clk 0:03:34.5]} 31... c5
{[%clk 0:03:33.8]} 32. Bd6 {[%clk 0:03:32.6]} 32... Kc6 {[%clk 0:03:32.9]} 33.
Bf8 {[%clk 0:03:31.5]} 33... Bd4 {[%clk 0:03:31.3]} 34. Be7 {[%clk 0:03:29.2]}
34... Be5 {[%clk 0:03:29.9]} 35. Bd8 {[%clk 0:03:27.3]} 35... Kd5 {[%clk
0:03:12.7]} 36. Bxa5 {[%clk 0:03:23.2]} 36... Kd4 {[%clk 0:03:11.1]} 37. Bb6
{[%clk 0:03:20.7]} 37... Kd5 {[%clk 0:03:08.3]} 38. Bd8 {[%clk 0:03:13.3]} 38...
Kc6 {[%clk 0:02:56.4]} 39. Be7 {[%clk 0:03:10.1]} 39... Bd4 {[%clk 0:02:54.2]}
40. Bf8 {[%clk 0:03:04.8]} 40... Kb6 {[%clk 0:02:52.7]} 41. Kd3 {[%clk
0:03:02.1]} 41... Bxb2 {[%clk 0:02:51.2]} 42. Kc4 {[%clk 0:03:01.2]} 42... Bd4
{[%clk 0:02:50.4]} 43. Kd5 {[%clk 0:02:59.6]} 43... Bf2 {[%clk 0:02:46]} 44.
Bxg7 {[%clk 0:02:53.3]} 44... g5 {[%clk 0:02:42.3]} 45. Bf6 {[%clk 0:02:48.8]}
45... g4 {[%clk 0:02:41.1]} 46. fxg4 {[%clk 0:02:47.2]} 46... fxg4 {[%clk
0:02:41]} 47. hxg4 {[%clk 0:02:46.4]} 47... Ka5 {[%clk 0:02:40.1]} 48. Be7
{[%clk 0:02:43.6]} 48... c4 {[%clk 0:02:38.7]} 49. Kxc4 {[%clk 0:02:42.1]} 49...
Ka6 {[%clk 0:02:36.5]} 50. Bxb4 {[%clk 0:02:40.5]} 50... Bg3 {[%clk 0:02:35]}
51. Kd5 {[%clk 0:02:38.8]} 51... Bc7 {[%clk 0:02:33.9]} 52. g5 {[%clk
0:02:37.5]} 52... Bd8 {[%clk 0:02:29.2]} 53. g6 {[%clk 0:02:35.5]} 53... Bf6
{[%clk 0:02:17.2]} 54. Bd2 {[%clk 0:02:33.8]} 54... Bg7 {[%clk 0:02:16.3]} 55.
b4 {[%clk 0:02:32.5]} 55... Kb6 {[%clk 0:02:15.6]} 56. Be3+ {[%clk 0:02:28.5]}
56... Ka6 {[%clk 0:02:14.3]} 57. Kc6 {[%clk 0:02:27.5]} 57... Bd4 {[%clk
0:02:10.7]} 58. b5+ {[%clk 0:02:22.7]} 58... Ka5 {[%clk 0:02:08.7]} 59. Bxd4
{[%clk 0:02:21.8]} 59... Kb4 {[%clk 0:02:07.3]} 60. g7 {[%clk 0:02:21.1]} 60...
Kc4 {[%clk 0:01:31.1]} 61. g8=Q+ {[%clk 0:02:21]} 61... Kd3 {[%clk 0:00:07.3]}
62. b6 {[%clk 0:02:20.9]} 62... Ke2 {[%clk 0:00:02]} 63. b7 {[%clk 0:02:20.8]}
63... Kd1 {[%clk 0:00:00.3]} 64. b8=Q {[%clk 0:02:20.7]} 64... Kc2 {[%clk
0:00:00.2]} 65. Qc4+ {[%clk 0:02:16.8]} 1-0

[Event "Live Chess"]
[Site "Chess.com"]
[Date "2023.05.20"]
[Round "-"]
[White "VicLemon"]
[Black "fso"]
[Result "0-1"]
[WhiteElo "1365"]
[BlackElo "2234"]
[TimeControl "300"]
[EndTime "15:05:15 PDT"]
[Termination "fso won on time"]

1. d4 {[%clk 0:04:54.9]} 1... Nf6 {[%clk 0:04:51.8]} 2. Nf3 {[%clk 0:04:51.5]}
2... e6 {[%clk 0:04:49.6]} 3. g3 {[%clk 0:04:42.8]} 3... d5 {[%clk 0:04:47.4]}
4. Bg2 {[%clk 0:04:41]} 4... c5 {[%clk 0:04:44.6]} 5. O-O {[%clk 0:04:30.6]}
5... Be7 {[%clk 0:04:42]} 6. c4 {[%clk 0:04:25.1]} 6... O-O {[%clk 0:04:39.5]}
7. cxd5 {[%clk 0:04:24.1]} 7... exd5 {[%clk 0:04:38]} 8. dxc5 {[%clk 0:04:20.3]}
8... Bxc5 {[%clk 0:04:37.9]} 9. Nbd2 {[%clk 0:04:17.7]} 9... Nc6 {[%clk
0:04:28.6]} 10. Nb3 {[%clk 0:04:15.9]} 10... Bb6 {[%clk 0:04:27.6]} 11. Bg5
{[%clk 0:04:07.6]} 11... h5 {[%clk 0:04:24.3]} 12. h4 {[%clk 0:04:03.8]} 12...
Re8 {[%clk 0:04:20.6]} 13. e3 {[%clk 0:03:50.2]} 13... Bg4 {[%clk 0:04:18.3]}
14. Qe1 {[%clk 0:02:55.4]} 14... Qd6 {[%clk 0:04:05.6]} 15. Bf4 {[%clk
0:02:41.8]} 15... Qb4 {[%clk 0:03:52.9]} 16. Qxb4 {[%clk 0:02:39]} 16... Nxb4
{[%clk 0:03:51.7]} 17. a3 {[%clk 0:02:36.8]} 17... Nd3 {[%clk 0:03:46]} 18. Rab1
{[%clk 0:02:23.3]} 18... Nxf4 {[%clk 0:03:40.8]} 19. gxf4 {[%clk 0:02:17.7]}
19... Rad8 {[%clk 0:03:28.1]} 20. Nbd4 {[%clk 0:02:10.7]} 20... Ne4 {[%clk
0:03:24.9]} 21. Rbc1 {[%clk 0:01:53.2]} 21... g6 {[%clk 0:02:42.4]} 22. Nb5
{[%clk 0:01:44.7]} 22... Bxf3 {[%clk 0:02:34.6]} 23. Bxf3 {[%clk 0:01:42]} 23...
Nd2 {[%clk 0:02:33.8]} 24. Be2 {[%clk 0:01:20.3]} 24... Nxf1 {[%clk 0:02:31.5]}
25. Kxf1 {[%clk 0:01:19.6]} 25... d4 {[%clk 0:02:31]} 26. Nxd4 {[%clk
0:01:13.3]} 26... Bxd4 {[%clk 0:02:29.9]} 27. exd4 {[%clk 0:01:12.1]} 27... Rxd4
{[%clk 0:02:28.2]} 28. f5 {[%clk 0:00:58.6]} 28... Rxh4 {[%clk 0:02:21.3]} 29.
fxg6 {[%clk 0:00:57]} 29... fxg6 {[%clk 0:02:20.2]} 30. Rc7 {[%clk 0:00:54.5]}
30... Rf4 {[%clk 0:02:09]} 31. Bc4+ {[%clk 0:00:46]} 31... Kh8 {[%clk
0:02:06.4]} 32. Bf7 {[%clk 0:00:40.9]} 32... Rf8 {[%clk 0:01:57.6]} 33. Bxg6
{[%clk 0:00:39.9]} 33... Rxf2+ {[%clk 0:01:56.3]} 34. Ke1 {[%clk 0:00:34.1]}
34... Rxb2 {[%clk 0:01:53.5]} 35. Rh7+ {[%clk 0:00:30.3]} 35... Kg8 {[%clk
0:01:52.2]} 36. Rxh5 {[%clk 0:00:27.2]} 36... Kg7 {[%clk 0:01:46.7]} 37. Bf5
{[%clk 0:00:12.5]} 37... Kf6 {[%clk 0:01:39.1]} 38. Bd3 {[%clk 0:00:10.9]} 38...
Rd8 {[%clk 0:01:34.9]} 39. Rh6+ {[%clk 0:00:08.3]} 39... Kg5 {[%clk 0:01:32.9]}
40. Rh3 {[%clk 0:00:06.9]} 40... Kg4 {[%clk 0:01:31.8]} 41. Re3 {[%clk
0:00:04.9]} 41... Kf4 {[%clk 0:01:28.8]} 42. Rh3 {[%clk 0:00:01.5]} 42... Re8+
{[%clk 0:01:27.3]} 0-1

[Event "Live Chess"]
[Site "Chess.com"]
[Date "2023.05.20"]
[Round "-"]
[White "EdenHazard8"]
[Black "JohanKjeldahl"]
[Result "1-0"]
[WhiteElo "2048"]
[BlackElo "1860"]
[TimeControl "300"]
[EndTime "15:05:21 PDT"]
[Termination "EdenHazard8 won by resignation"]

1. e4 {[%clk 0:04:58.5]} 1... c5 {[%clk 0:04:58]} 2. Nc3 {[%clk 0:04:57.6]} 2...
e6 {[%clk 0:04:56.7]} 3. f4 {[%clk 0:04:57.5]} 3... Nc6 {[%clk 0:04:55.4]} 4.
Nf3 {[%clk 0:04:57]} 4... a6 {[%clk 0:04:54.5]} 5. a4 {[%clk 0:04:55.4]} 5...
Qc7 {[%clk 0:04:52.8]} 6. Bc4 {[%clk 0:04:53]} 6... Nf6 {[%clk 0:04:49.2]} 7.
O-O {[%clk 0:04:51.2]} 7... d6 {[%clk 0:04:46.7]} 8. d3 {[%clk 0:04:50.1]} 8...
Be7 {[%clk 0:04:46]} 9. Qe1 {[%clk 0:04:49.4]} 9... O-O {[%clk 0:04:44.9]} 10.
Qg3 {[%clk 0:04:49]} 10... Bd7 {[%clk 0:04:40.1]} 11. f5 {[%clk 0:04:47.7]}
11... exf5 {[%clk 0:04:36.4]} 12. Bh6 {[%clk 0:04:47.1]} 12... Ne8 {[%clk
0:04:33]} 13. Nd5 {[%clk 0:04:45]} 13... Qd8 {[%clk 0:04:30]} 14. exf5 {[%clk
0:04:40.8]} 14... Bxf5 {[%clk 0:04:27.5]} 15. Rae1 {[%clk 0:04:38.8]} 15... Bg6
{[%clk 0:04:24.1]} 16. Nxe7+ {[%clk 0:04:34.1]} 16... Nxe7 {[%clk 0:04:22.9]}
17. Bg5 {[%clk 0:04:33.7]} 17... Nf6 {[%clk 0:04:15.5]} 18. Bxf6 {[%clk
0:04:31.5]} 18... gxf6 {[%clk 0:04:14.1]} 19. Nh4 {[%clk 0:04:27]} 19... Kh8
{[%clk 0:03:59.9]} 20. Rxf6 {[%clk 0:04:17.3]} 20... d5 {[%clk 0:03:58.4]} 21.
Ba2 {[%clk 0:04:15]} 21... Nc6 {[%clk 0:03:50.3]} 22. Nxg6+ {[%clk 0:04:11.2]}
22... fxg6 {[%clk 0:03:48.2]} 23. Rxf8+ {[%clk 0:04:09.4]} 23... Qxf8 {[%clk
0:03:47.1]} 24. Bxd5 {[%clk 0:04:08.5]} 24... Rc8 {[%clk 0:03:41]} 25. Rf1
{[%clk 0:04:05]} 25... Qg7 {[%clk 0:03:37.7]} 26. Qg4 {[%clk 0:04:01.7]} 26...
Ne7 {[%clk 0:03:27.5]} 27. Rf7 {[%clk 0:03:58.2]} 27... Qd4+ {[%clk 0:03:25.6]}
28. Qxd4+ {[%clk 0:03:56.6]} 28... cxd4 {[%clk 0:03:23.6]} 29. Rxe7 {[%clk
0:03:56.2]} 1-0

[Event "Live Chess"]
[Site "Chess.com"]
[Date "2023.05.20"]
[Round "-"]
[White "ViktorTheCoolBoy"]
[Black "Stanbad1"]
[Result "1-0"]
[WhiteElo "2512"]
[BlackElo "2387"]
[TimeControl "300"]
[EndTime "15:05:43 PDT"]
[Termination "ViktorTheCoolBoy won by resignation"]

1. d4 {[%clk 0:04:58.5]} 1... Nf6 {[%clk 0:04:49.3]} 2. c4 {[%clk 0:04:57.3]}
2... c5 {[%clk 0:04:47.8]} 3. Nf3 {[%clk 0:04:53.1]} 3... cxd4 {[%clk
0:04:43.9]} 4. Nxd4 {[%clk 0:04:53]} 4... g6 {[%clk 0:04:38.1]} 5. Nc3 {[%clk
0:04:51.7]} 5... Bg7 {[%clk 0:04:36.3]} 6. g3 {[%clk 0:04:50.2]} 6... d5 {[%clk
0:04:35.2]} 7. Bg2 {[%clk 0:04:45.9]} 7... dxc4 {[%clk 0:04:33.2]} 8. O-O {[%clk
0:04:45]} 8... O-O {[%clk 0:04:31.3]} 9. Ndb5 {[%clk 0:04:38.8]} 9... Qb6 {[%clk
0:04:27]} 10. Be3 {[%clk 0:04:37.1]} 10... Qa5 {[%clk 0:04:19.7]} 11. Qc1 {[%clk
0:04:34.8]} 11... a6 {[%clk 0:04:17.1]} 12. Nd4 {[%clk 0:04:33.2]} 12... Ng4
{[%clk 0:04:05.2]} 13. Nd5 {[%clk 0:04:30.7]} 13... Nxe3 {[%clk 0:04:00.8]} 14.
Qxe3 {[%clk 0:04:29.7]} 14... Bxd4 {[%clk 0:03:56.3]} 15. Nxe7+ {[%clk
0:04:27.8]} 15... Kg7 {[%clk 0:03:53.7]} 16. Qxd4+ {[%clk 0:04:26.7]} 16... f6
{[%clk 0:03:52.7]} 17. Qxc4 {[%clk 0:04:22]} 17... Nc6 {[%clk 0:03:49.3]} 18.
Nxc6 {[%clk 0:04:17.5]} 18... bxc6 {[%clk 0:03:49.2]} 19. Qxc6 {[%clk
0:04:14.6]} 19... Rb8 {[%clk 0:03:48.1]} 20. b3 {[%clk 0:04:12.6]} 20... Bg4
{[%clk 0:03:45.1]} 21. Qe4 {[%clk 0:04:09.8]} 21... Bf5 {[%clk 0:03:42.4]} 22.
Qf4 {[%clk 0:04:04.3]} 22... Rbe8 {[%clk 0:03:39.1]} 23. e4 {[%clk 0:04:01.7]}
23... Be6 {[%clk 0:03:37.2]} 24. Rfc1 {[%clk 0:03:57.1]} 24... Rf7 {[%clk
0:03:34.6]} 25. Qf3 {[%clk 0:03:46.8]} 25... h5 {[%clk 0:03:31.3]} 26. Qc3
{[%clk 0:03:45.1]} 26... Qb6 {[%clk 0:03:28.4]} 27. Qc5 {[%clk 0:03:40.5]} 27...
Qb8 {[%clk 0:03:24.8]} 28. h4 {[%clk 0:03:32.5]} 28... Bg4 {[%clk 0:03:22]} 29.
Qd4 {[%clk 0:03:27]} 29... Rd7 {[%clk 0:03:16.1]} 30. Qe3 {[%clk 0:03:25]} 30...
Red8 {[%clk 0:03:13.8]} 31. Kh2 {[%clk 0:03:22.5]} 31... Rd3 {[%clk 0:03:10.2]}
32. Qc5 {[%clk 0:03:18.5]} 32... R8d7 {[%clk 0:03:08.2]} 33. Rc2 {[%clk
0:03:14.9]} 33... Bf3 {[%clk 0:02:59.5]} 34. Rac1 {[%clk 0:03:09.7]} 34... Qe8
{[%clk 0:02:52.6]} 35. Re1 {[%clk 0:03:01.3]} 35... Bxg2 {[%clk 0:02:49.9]} 36.
Kxg2 {[%clk 0:02:59.8]} 36... Qe6 {[%clk 0:02:48.5]} 37. e5 {[%clk 0:02:47.9]}
37... f5 {[%clk 0:02:42.9]} 38. Qc4 {[%clk 0:02:44.5]} 38... Qe7 {[%clk
0:02:36.8]} 39. Rce2 {[%clk 0:02:40.6]} 39... R3d4 {[%clk 0:02:33.3]} 40. Qc3
{[%clk 0:02:39.1]} 40... f4 {[%clk 0:02:32.1]} 41. e6 {[%clk 0:02:33.2]} 41...
Rd5 {[%clk 0:02:29.7]} 42. Re4 {[%clk 0:02:31.6]} 42... Qf6 {[%clk 0:02:26.8]}
43. Rxd4 {[%clk 0:02:30]} 43... Rxd4 {[%clk 0:02:24.2]} 44. e7 {[%clk
0:02:28.1]} 44... f3+ {[%clk 0:02:18.5]} 45. Qxf3 {[%clk 0:02:26.9]} 1-0

[Event "Live Chess"]
[Site "Chess.com"]
[Date "2023.05.20"]
[Round "-"]
[White "manthanit"]
[Black "Daniel_Gliddon_FA"]
[Result "1-0"]
[WhiteElo "1029"]
[BlackElo "1308"]
[TimeControl "300"]
[EndTime "15:05:54 PDT"]
[Termination "manthanit won by resignation"]

1. e4 {[%clk 0:04:55.6]} 1... d6 {[%clk 0:04:56.2]} 2. Nf3 {[%clk 0:04:54.2]}
2... Nf6 {[%clk 0:04:47.3]} 3. Qe2 {[%clk 0:04:45.1]} 3... g6 {[%clk 0:04:44.2]}
4. g3 {[%clk 0:04:44.1]} 4... Bg7 {[%clk 0:04:41.9]} 5. Bg2 {[%clk 0:04:43.6]}
5... O-O {[%clk 0:04:40.6]} 6. O-O {[%clk 0:04:42.5]} 6... e5 {[%clk 0:04:36.9]}
7. b3 {[%clk 0:04:32.3]} 7... Bg4 {[%clk 0:04:34.7]} 8. Bb2 {[%clk 0:04:30]}
8... Nc6 {[%clk 0:04:29.1]} 9. a3 {[%clk 0:04:23]} 9... Qd7 {[%clk 0:04:27.7]}
10. Nc3 {[%clk 0:04:13.3]} 10... Nd4 {[%clk 0:04:24.7]} 11. Qd1 {[%clk
0:03:34.1]} 11... c5 {[%clk 0:03:58]} 12. b4 {[%clk 0:03:28]} 12... b6 {[%clk
0:03:53.2]} 13. d3 {[%clk 0:03:19.8]} 13... a5 {[%clk 0:03:35.1]} 14. bxc5
{[%clk 0:03:14.4]} 14... bxc5 {[%clk 0:03:29]} 15. Nd5 {[%clk 0:03:13]} 15...
Nxd5 {[%clk 0:03:25.7]} 16. exd5 {[%clk 0:03:11.7]} 16... Rab8 {[%clk
0:03:23.1]} 17. Bxd4 {[%clk 0:03:06.9]} 17... cxd4 {[%clk 0:03:18.3]} 18. Qd2
{[%clk 0:03:04.1]} 18... Rb2 {[%clk 0:03:10.3]} 19. Rfc1 {[%clk 0:02:57.6]}
19... Rfb8 {[%clk 0:03:05.6]} 20. Qxa5 {[%clk 0:02:46.9]} 20... Bh3 {[%clk
0:03:00.1]} 21. Qd2 {[%clk 0:02:37.8]} 21... Bxg2 {[%clk 0:02:45.4]} 22. Kxg2
{[%clk 0:02:36.4]} 22... h5 {[%clk 0:02:43.2]} 23. a4 {[%clk 0:02:28.7]} 23...
Qe7 {[%clk 0:02:30]} 24. Qe2 {[%clk 0:02:22.7]} 24... Bh6 {[%clk 0:02:26.2]} 25.
Rd1 {[%clk 0:02:08.3]} 25... f5 {[%clk 0:02:09.8]} 26. Nxd4 {[%clk 0:02:05]}
26... Qc7 {[%clk 0:01:54.5]} 27. Nc6 {[%clk 0:02:02.3]} 27... R8b6 {[%clk
0:01:40.6]} 28. a5 {[%clk 0:01:58.7]} 28... Ra6 {[%clk 0:01:32.2]} 29. Rdb1
{[%clk 0:01:43.1]} 29... Rxb1 {[%clk 0:01:26.9]} 30. Rxb1 {[%clk 0:01:42]} 30...
Qb7 {[%clk 0:01:21.6]} 31. Rxb7 {[%clk 0:01:37.8]} 1-0

[Event "Live Chess"]
[Site "Chess.com"]
[Date "2023.05.20"]
[Round "-"]
[White "KeithArkell"]
[Black "gmnorfolk"]
[Result "1-0"]
[WhiteElo "2607"]
[BlackElo "2126"]
[TimeControl "300"]
[EndTime "15:06:01 PDT"]
[Termination "KeithArkell won by resignation"]

1. d4 {[%clk 0:04:58.6]} 1... Nf6 {[%clk 0:04:58.6]} 2. Nf3 {[%clk 0:04:57.4]}
2... g6 {[%clk 0:04:57.4]} 3. c4 {[%clk 0:04:56.4]} 3... Bg7 {[%clk 0:04:56.3]}
4. g3 {[%clk 0:04:55.1]} 4... O-O {[%clk 0:04:54]} 5. Bg2 {[%clk 0:04:54.5]}
5... d5 {[%clk 0:04:53.6]} 6. cxd5 {[%clk 0:04:53.2]} 6... Nxd5 {[%clk
0:04:51.3]} 7. Nc3 {[%clk 0:04:53]} 7... Nxc3 {[%clk 0:04:43.8]} 8. bxc3 {[%clk
0:04:50.9]} 8... c5 {[%clk 0:04:42.5]} 9. O-O {[%clk 0:04:49.9]} 9... cxd4
{[%clk 0:04:41.4]} 10. cxd4 {[%clk 0:04:49.3]} 10... Nc6 {[%clk 0:04:40.8]} 11.
e3 {[%clk 0:04:48.6]} 11... Bg4 {[%clk 0:04:32.5]} 12. h3 {[%clk 0:04:46.8]}
12... Bxf3 {[%clk 0:04:30.1]} 13. Bxf3 {[%clk 0:04:46.1]} 13... e5 {[%clk
0:04:29.7]} 14. Bxc6 {[%clk 0:04:44.4]} 14... bxc6 {[%clk 0:04:28]} 15. Ba3
{[%clk 0:04:41.7]} 15... Re8 {[%clk 0:04:23.7]} 16. dxe5 {[%clk 0:04:41]} 16...
Qa5 {[%clk 0:04:16.7]} 17. Bd6 {[%clk 0:04:38]} 17... Bxe5 {[%clk 0:04:12.8]}
18. Bxe5 {[%clk 0:04:37.1]} 18... Qxe5 {[%clk 0:04:07.3]} 19. Qc2 {[%clk
0:04:36]} 19... Rac8 {[%clk 0:04:01]} 20. Rac1 {[%clk 0:04:34.3]} 20... c5
{[%clk 0:03:59.6]} 21. Qc4 {[%clk 0:04:32.8]} 21... Qf5 {[%clk 0:03:55.7]} 22.
Kg2 {[%clk 0:04:30]} 22... Re4 {[%clk 0:03:50.5]} 23. Qb5 {[%clk 0:04:26.1]}
23... Rb4 {[%clk 0:03:37.5]} 24. Qa6 {[%clk 0:04:17.3]} 24... Qe4+ {[%clk
0:03:25.2]} 25. Kg1 {[%clk 0:04:15.9]} 25... Qe6 {[%clk 0:02:41.5]} 26. Qxe6
{[%clk 0:04:12.1]} 26... fxe6 {[%clk 0:02:39.3]} 27. Rc3 {[%clk 0:04:03.4]}
27... c4 {[%clk 0:02:29.8]} 28. Rd1 {[%clk 0:04:01.6]} 28... Ra4 {[%clk
0:02:29.5]} 29. a3 {[%clk 0:04:00.4]} 29... Rc7 {[%clk 0:02:28.1]} 30. Rd4
{[%clk 0:03:41.8]} 30... Kf7 {[%clk 0:02:26.6]} 31. f4 {[%clk 0:03:39.9]} 31...
Ke7 {[%clk 0:02:16.2]} 32. Kf2 {[%clk 0:03:38.8]} 32... e5 {[%clk 0:02:07.1]}
33. Rd5 {[%clk 0:03:35.2]} 33... exf4 {[%clk 0:02:04.8]} 34. gxf4 {[%clk
0:03:35.1]} 34... Rb7 {[%clk 0:01:58.3]} 35. Rc5 {[%clk 0:03:30.8]} 35... Rb2+
{[%clk 0:01:34.3]} 36. Kf3 {[%clk 0:03:29.6]} 36... Rb3 {[%clk 0:01:28]} 37.
R5xc4 {[%clk 0:03:27.1]} 37... Raxa3 {[%clk 0:01:13.5]} 38. Rxb3 {[%clk
0:03:25.2]} 38... Rxb3 {[%clk 0:01:12.1]} 39. Rc7+ {[%clk 0:03:24.3]} 39... Kf6
{[%clk 0:01:11.6]} 40. Rxa7 {[%clk 0:03:20.8]} 40... h5 {[%clk 0:01:08.7]} 41.
Ra6+ {[%clk 0:03:19.8]} 41... Kf7 {[%clk 0:01:06.9]} 42. h4 {[%clk 0:03:18]}
42... Rb1 {[%clk 0:01:05]} 43. Ke4 {[%clk 0:03:13.6]} 43... Rb4+ {[%clk
0:01:03.6]} 44. Ke5 {[%clk 0:03:12.7]} 44... Rb5+ {[%clk 0:01:02.8]} 45. Kd4
{[%clk 0:03:12]} 45... Rb4+ {[%clk 0:01:01.2]} 46. Kd5 {[%clk 0:03:11.3]} 46...
Rb5+ {[%clk 0:01:00.1]} 47. Kc4 {[%clk 0:03:10.1]} 47... Rb1 {[%clk 0:00:58]}
48. Kd5 {[%clk 0:02:58.7]} 48... Rd1+ {[%clk 0:00:55.7]} 49. Ke4 {[%clk
0:02:57.9]} 49... Rb1 {[%clk 0:00:53.6]} 50. Rc6 {[%clk 0:02:55.2]} 50... Rb4+
{[%clk 0:00:51.6]} 51. Kd5 {[%clk 0:02:54.4]} 51... Rb5+ {[%clk 0:00:50.4]} 52.
Rc5 {[%clk 0:02:53.7]} 52... Rb3 {[%clk 0:00:47.9]} 53. Ke4 {[%clk 0:02:51]}
53... Rb4+ {[%clk 0:00:46.8]} 54. Ke5 {[%clk 0:02:50.2]} 54... Rb1 {[%clk
0:00:41.2]} 55. Rc7+ {[%clk 0:02:49.1]} 55... Kg8 {[%clk 0:00:39.6]} 56. Kf6
{[%clk 0:02:47.9]} 56... Rb6+ {[%clk 0:00:38]} 57. Kg5 {[%clk 0:02:47]} 57...
Kh8 {[%clk 0:00:33.6]} 58. e4 {[%clk 0:02:45.3]} 58... Kg8 {[%clk 0:00:30.3]}
59. e5 {[%clk 0:02:44.8]} 59... Kf8 {[%clk 0:00:25.7]} 60. Rd7 {[%clk
0:02:43.9]} 1-0

[Event "Live Chess"]
[Site "Chess.com"]
[Date "2023.05.20"]
[Round "-"]
[White "therealab0ne"]
[Black "raimundklein"]
[Result "0-1"]
[WhiteElo "694"]
[BlackElo "1499"]
[TimeControl "300"]
[EndTime "15:06:12 PDT"]
[Termination "raimundklein won by resignation"]

1. e4 {[%clk 0:04:58.8]} 1... c6 {[%clk 0:04:58.4]} 2. d4 {[%clk 0:04:57]} 2...
d5 {[%clk 0:04:57.7]} 3. f3 {[%clk 0:04:56.6]} 3... g6 {[%clk 0:04:53.8]} 4.
exd5 {[%clk 0:04:54.6]} 4... cxd5 {[%clk 0:04:52.5]} 5. Nc3 {[%clk 0:04:53.9]}
5... Bg7 {[%clk 0:04:50.9]} 6. Nge2 {[%clk 0:04:48.9]} 6... Nc6 {[%clk
0:04:49.4]} 7. Nxd5 {[%clk 0:04:47.7]} 7... Qxd5 {[%clk 0:04:43.5]} 8. Nc3
{[%clk 0:04:31.9]} 8... Qxd4 {[%clk 0:04:41.2]} 9. Qxd4 {[%clk 0:04:30.5]} 9...
Bxd4 {[%clk 0:04:39.4]} 10. Bd3 {[%clk 0:04:25.3]} 10... Bxc3+ {[%clk
0:04:32.3]} 11. bxc3 {[%clk 0:04:24.1]} 11... Nf6 {[%clk 0:04:25.1]} 12. O-O
{[%clk 0:04:22.7]} 12... O-O {[%clk 0:04:22.8]} 13. Re1 {[%clk 0:04:21.2]} 13...
Kg7 {[%clk 0:04:20.6]} 14. Ba3 {[%clk 0:04:15.8]} 14... Re8 {[%clk 0:04:16.5]}
15. c4 {[%clk 0:03:39]} 15... e5 {[%clk 0:04:01]} 16. Bb2 {[%clk 0:03:25.7]}
16... Bd7 {[%clk 0:03:42.7]} 17. f4 {[%clk 0:03:24.4]} 17... exf4 {[%clk
0:03:37.1]} 18. Rxe8 {[%clk 0:03:22.6]} 18... Rxe8 {[%clk 0:03:35.4]} 19. Rd1
{[%clk 0:03:18.4]} 19... Bg4 {[%clk 0:03:30.4]} 20. Rd2 {[%clk 0:03:16.4]} 20...
Ne5 {[%clk 0:03:24.6]} 21. Bxe5 {[%clk 0:03:11.2]} 21... Rxe5 {[%clk 0:03:23]}
22. h3 {[%clk 0:03:08.5]} 22... Be6 {[%clk 0:03:18]} 23. Kf2 {[%clk 0:03:08]}
23... Ne4+ {[%clk 0:03:16.4]} 24. Bxe4 {[%clk 0:03:06.5]} 24... Rxe4 {[%clk
0:03:16.3]} 25. Kf3 {[%clk 0:03:05.1]} 25... Rxc4 {[%clk 0:03:14.9]} 0-1